bitfinex-derivatives/quotes_ETHF0:USTF0_20250130
["timestamp","ask_amount","ask_price","bid_price","bid_amount"]
[1738250760077,3.16806253,3261.9,3261.2,4.1788]
[1738250760486,3.17265551,3261.9,3261.8,0.61318]
[1738250760985,0.00459298,3261.9,3261.8,0.61318]
[1738250761686,0.00459298,3261.9,3261.8,3.82098]
[1738250762006,0.61298,3262.9,3261.8,3.82098]
[1738250762007,3.78098253,3263.2,3262.9,0.61296]
[1738250762581,3.16806253,3263.2,3262.5,3.2078]
[1738250762785,6.37586253,3263.8,3262.9,3.2078]
[1738250762984,6.37586253,3263.8,3263.7,0.61282]
[1738250763189,6.37586253,3263.8,3263.6,0.61283]
[1738250763380,6.37586253,3263.8,3263.5,0.61285]
[1738250763690,6.37586253,3263.8,3263.7,0.61282]
[1738250764181,3.2078,3263.8,3263.7,0.61282]
[1738250764692,6.37586253,3263.8,3263.7,0.61282]
[1738250765580,3.16806253,3263.8,3263.7,0.61282]
[1738250767886,3.16806253,3263.8,3263.4,1.0067]
[1738250768088,0.61283,3263.7,3263.4,1.0067]
[1738250768284,3.78087253,3263.8,3263.4,1.61956]
[1738250768792,3.16806253,3263.8,3263.3,3.2078]
[1738250768994,3.78087253,3263.8,3263.4,0.61287]
[1738250769291,3.2078,3263.7,3263.0,1.9304]
[1738250769591,3.2078,3263.7,3263.6,0.61284]
[1738250770279,3.82063,3263.7,3263.3,0.61288]
[1738250770489,3.16806253,3263.4,3263.1,0.61293]
[1738250770677,3.16806253,3263.4,3263.0,1.0112]
[1738250770678,3.16806253,3263.4,3263.3,0.6129]
[1738250771892,3.16806253,3263.4,3263.1,0.61293]
[1738250772093,3.16806253,3263.4,3263.2,0.61291]
[1738250772391,3.2078,3263.3,3263.0,1.0112]
[1738250772588,3.2078,3263.3,3262.9,0.9719]
[1738250772785,3.16806253,3263.0,3262.5,3.21239298]
[1738250772982,3.16806253,3263.0,3262.9,0.61297]
[1738250773692,3.2078,3263.3,3262.5,3.21239298]
[1738250773890,3.2078,3263.3,3263.1,0.61293]
[1738250774091,3.2078,3263.3,3262.5,3.21239298]
[1738250774294,3.16806253,3263.0,3262.9,0.61297]
[1738250774489,3.16806253,3263.0,3262.6,0.61302]
[1738250774686,3.16806253,3262.7,3262.5,3.21239298]
[1738250774896,3.16806253,3262.7,3262.5,0.00459298]
[1738250775085,3.16806253,3262.7,3262.6,0.61303]
[1738250775286,3.2078,3262.9,3262.8,0.61299]
[1738250777190,0.61299,3262.8,3262.5,0.61763298]
[1738250777490,3.16806253,3262.7,3262.5,0.61763298]
[1738250777792,3.16806253,3262.7,3262.6,0.61303]
[1738250778890,3.16806253,3262.7,3261.4,3.2078]
[1738250779092,3.16806253,3262.7,3261.8,0.61317]
[1738250779093,0.61313,3262.1,3261.8,0.61317]
[1738250779286,1.093,3262.1,3261.9,0.61316]
[1738250779493,1.093,3262.1,3261.4,3.2078]
[1738250779691,1.70614,3262.1,3261.8,0.61318]
[1738250779895,1.70614,3262.1,3261.5,0.61323]
[1738250780096,6.37586253,3261.7,3261.6,0.00308833]
[1738250780394,6.37586253,3261.7,3260.6,1.9594]
[1738250780600,3.16806253,3261.0,3260.9,0.61335]
[1738250780900,1.093,3261.2,3260.6,1.9594]
[1738250781099,1.093,3261.2,3261.0,0.61332]
[1738250781599,1.093,3261.2,3260.9,0.61334]
[1738250781793,1.093,3261.2,3260.7,0.61339]
[1738250782000,1.093,3261.2,3260.6,1.9594]
[1738250782199,6.37586253,3261.3,3261.2,0.61329]
[1738250782399,0.61329,3261.2,3260.7,0.61337]
[1738250782599,3.16806253,3260.9,3260.5,3.2078]
[1738250783392,3.16806253,3260.9,3260.7,0.61337]
[1738250783601,3.16806253,3260.9,3260.4,0.9531]
[1738250783801,3.16806253,3260.9,3260.8,0.61337]
[1738250784198,3.16806253,3260.9,3260.4,0.9531]
[1738250784509,6.37586253,3260.9,3260.4,0.9531]
[1738250784892,6.37586253,3260.9,3260.6,0.6134]
[1738250785094,0.61344,3260.5,3260.1,3.2078]
[1738250785299,6.37586253,3260.5,3259.7,0.61357]
[1738250785499,3.16806253,3260.5,3260.4,0.61344]
[1738250786301,0.0046001,3260.6,3260.5,0.61342]
[1738250786792,0.0046001,3260.6,3260.5,3.82122]
[1738250787000,3.2078,3261.3,3261.2,0.61329]
[1738250787706,4.17846253,3261.5,3261.2,0.61329]
[1738250787894,0.61328,3261.3,3260.8,0.61335]
[1738250788098,3.16806253,3260.9,3260.5,0.61341]
[1738250788294,3.2078,3260.7,3260.5,0.61341]
[1738250788500,3.2078,3260.7,3260.3,0.61345]
[1738250788804,0.61338,3260.8,3260.3,0.61345]
[1738250788805,3.2078,3260.8,3260.3,0.0046001]
[1738250789102,3.16806253,3260.9,3260.8,0.61337]
[1738250789298,1.0104,3261.5,3261.4,0.61325]
[1738250789609,1.0104,3261.5,3260.8,3.2078]
[1738250789816,0.61327,3261.3,3260.9,0.61333]
[1738250790099,1.0104,3261.5,3260.6,0.61545656]
[1738250790100,3.78138253,3261.1,3260.6,0.61545656]
[1738250790498,3.16806253,3260.8,3260.6,0.00206656]
[1738250790711,3.78144253,3260.8,3260.6,0.00206656]
[1738250791008,3.16806253,3260.8,3260.6,0.00206656]
[1738250791208,6.37586253,3260.8,3260.6,0.00206656]
[1738250791407,6.98924253,3260.8,3260.6,0.00206656]
[1738250791701,6.37586253,3260.8,3260.6,0.00206656]
[1738250791906,0.61339,3260.7,3260.6,0.00206656]
[1738250792115,1.60889,3260.7,3260.6,0.00206656]
[1738250792407,0.61344,3260.4,3260.3,0.0046001]
[1738250792595,6.98930253,3260.4,3260.3,0.0046001]
[1738250792804,0.61355,3259.9,3258.8,4.74212]
[1738250793008,3.16806253,3259.5,3259.4,0.61362]
[1738250793403,3.16806253,3259.5,3259.4,0.61363]
[1738250794209,1.093,3259.7,3259.6,0.61359]
[1738250794411,1.093,3259.7,3259.2,3.2078]
[1738250794604,3.16806253,3259.5,3258.9,0.9873]
[1738250794810,0.0046001,3259.8,3259.1,3.2078]
[1738250795006,0.0046001,3259.8,3259.7,3.82137]
[1738250795210,3.16806253,3261.0,3259.7,3.2078]
[1738250795509,3.16806253,3261.0,3260.3,1.53365]
[1738250795706,3.2078,3260.7,3260.4,0.9998]
[1738250796011,3.2078,3260.7,3260.5,0.61341]
[1738250796208,3.16806253,3260.6,3260.4,0.9998]
[1738250796509,3.16806253,3260.6,3260.4,1.61323]
[1738250796899,3.16806253,3260.6,3260.4,0.9998]
[1738250797112,3.16806253,3260.6,3260.3,0.0046001]
[1738250797610,0.61344,3260.4,3260.3,0.0046001]
[1738250797812,0.61357,3259.8,3259.2,0.61367]
[1738250798014,3.82146,3259.3,3258.9,0.61371]
[1738250798311,3.16806253,3259.0,3258.9,0.61372]
[1738250798507,3.16806253,3259.0,3258.4,1.8592]
[1738250798709,0.61383,3258.4,3257.8,3.46402]
[1738250798910,1.093,3258.4,3257.8,2.8501]
[1738250799211,3.2078,3258.0,3257.8,2.8501]
[1738250799406,3.2078,3258.0,3257.8,3.46401]
[1738250799609,3.2078,3258.0,3257.8,2.8501]
[1738250799815,3.2078,3258.0,3257.3,3.2078]
[1738250800407,3.2078,3258.3,3257.3,3.2078]
[1738250800612,0.0046001,3258.4,3258.3,0.61384]
[1738250801414,0.0046001,3258.4,3257.2,6.52680011]
[1738250801415,0.0046001,3258.4,3257.8,3.2078]
[1738250801609,3.2124001,3258.4,3257.3,3.2078]
[1738250801818,0.9543,3258.3,3257.3,3.2078]
[1738250802017,1.56814,3258.3,3257.6,0.61396]
[1738250802211,3.68070011,3258.0,3257.3,0.61402]
[1738250802407,7.98550011,3258.0,3257.5,3.2078]
[1738250802612,8.59940011,3258.0,3257.5,3.2078]
[1738250803015,7.98550011,3258.0,3257.5,0.61397]
[1738250803211,7.98550011,3258.0,3257.2,0.9235]
[1738250803817,0.61392,3257.9,3257.3,0.61402]
[1738250804111,0.61393,3257.8,3257.2,1.53753]
[1738250804416,3.68070011,3257.5,3257.1,3.2078]
[1738250805714,3.68070011,3257.5,3257.4,0.61401]
[1738250806014,1.095,3257.9,3257.1,3.2078]
[1738250806407,0.61393,3257.8,3257.2,0.61404]
[1738250806611,1.095,3257.9,3257.1,3.2078]
[1738250806806,1.095,3257.9,3257.6,0.61396]
[1738250807211,1.095,3257.9,3257.1,3.2078]
[1738250807812,6.88850011,3258.0,3257.1,3.2078]
[1738250808020,1.094,3257.9,3257.5,0.61399]
[1738250808312,1.094,3257.9,3257.1,3.2078]
[1738250808720,1.094,3257.9,3257.5,0.61399]
[1738250809219,1.094,3257.8,3257.5,0.61399]
[1738250809614,1.094,3257.8,3257.1,3.2078]
[1738250809814,3.68070011,3258.0,3257.5,3.2078]
[1738250810019,2.0483,3258.3,3257.5,3.2078]
[1738250810207,2.0483,3258.3,3258.0,3.2078]
[1738250810408,0.9543,3258.3,3258.0,3.2078]
[1738250811518,0.9543,3258.3,3258.0,3.82169]
[1738250811708,3.2078,3258.1,3257.9,0.6139]
[1738250811913,3.2078,3258.1,3257.8,0.61392]
[1738250812118,3.68070011,3258.0,3257.2,4.1383]
[1738250812323,3.68070011,3258.0,3257.7,0.61394]
[1738250812510,3.68070011,3258.0,3257.2,4.1383]
[1738250812918,3.68070011,3258.0,3257.9,0.61391]
[1738250813118,4.1621,3258.3,3258.2,0.61385]
[1738250814117,4.1621,3258.3,3257.7,1.0195]
[1738250814417,4.1621,3258.3,3257.6,3.2078]
[1738250814625,3.68070011,3258.0,3257.6,3.82176]
[1738250814825,3.68070011,3258.0,3257.6,3.2078]
[1738250815016,3.68070011,3258.0,3257.6,3.82177]
[1738250815322,3.68070011,3258.0,3257.6,3.2078]
[1738250815519,0.61392,3257.9,3257.6,3.2078]
[1738250815923,3.2078,3257.9,3257.2,3.2078]
[1738250816223,0.9421,3257.8,3257.2,3.2078]
[1738250816415,0.9421,3257.8,3257.3,0.61402]
[1738250816726,1.55604,3257.8,3257.3,0.61402]
[1738250816927,1.55605,3257.8,3257.3,0.61402]
[1738250817228,4.29470011,3257.5,3257.2,3.2078]
[1738250817430,0.9243,3257.4,3257.2,3.2078]
[1738250818424,0.9243,3257.4,3257.3,0.61402]
[1738250818634,4.112176,3257.4,3257.3,0.61402]
[1738250819219,3.187876,3257.8,3257.6,0.61397]
[1738250819524,3.187876,3257.8,3257.3,0.9557]
[1738250819727,3.187876,3258.2,3257.6,3.2078]
[1738250820031,3.187876,3257.8,3257.7,0.61395]
[1738250820527,3.187876,3258.2,3257.7,0.61395]
[1738250820730,3.187876,3258.2,3258.1,0.61387]
[1738250820927,3.187876,3258.2,3258.0,3.2078]
[1738250821128,3.187876,3258.2,3257.6,3.2078]
[1738250821319,0.61398,3257.6,3257.2,3.82184]
[1738250821517,3.187876,3257.3,3257.2,3.82184]
[1738250822129,1.0115,3257.5,3256.8,3.2078]
[1738250822325,3.187876,3257.0,3256.9,0.6141]
[1738250822539,4.281876,3257.4,3257.3,0.61402]
[1738250822739,1.094,3257.4,3257.3,0.61402]
[1738250823736,1.0115,3257.5,3257.4,0.61401]
[1738250824438,1.0115,3257.5,3257.3,0.61401]
[1738250824837,1.0115,3257.5,3257.1,3.2078]
[1738250825140,1.0115,3257.5,2546.7,0.2]
[1738250825141,3.68244245,3257.2,3256.2,3.2078]
[1738250825440,3.68244245,3256.4,3256.3,0.61421]
[1738250825840,1.094,3256.6,3256.5,0.61417]
[1738250826144,3.68244245,3256.9,3256.2,3.2078]
[1738250826145,0.0046001,3256.7,3256.6,0.61416]
[1738250826945,3.68244245,3257.4,3257.3,0.61402]
[1738250827444,3.2078,3257.6,3257.5,0.61399]
[1738250827838,3.2078,3257.6,3257.2,3.2078]
[1738250828132,3.68244245,3257.3,3257.2,3.2124001]
[1738250828343,3.68244245,3257.3,3256.6,0.47664705]
[1738250828541,4.29656245,3256.8,3256.7,0.42446287]
[1738250828739,4.77644245,3256.8,3256.3,0.42446287]
[1738250828941,1.0147,3256.7,3256.2,3.2078]
[1738250829132,1.0147,3256.7,3256.5,0.61417]
[1738250829333,1.0147,3256.7,3256.2,3.2078]
[1738250829534,1.0147,3256.7,3256.6,0.61416]
[1738250829745,1.0147,3256.7,3256.2,3.2078]
[1738250830042,1.0147,3256.7,3256.6,0.61416]
[1738250830238,3.68244245,3256.8,3256.7,0.61414]
[1738250830439,0.24292726,3257.0,3256.9,0.6141]
[1738250830639,4.3018,3257.2,3256.9,0.6141]
[1738250830841,4.3018,3257.2,3256.8,0.61411]
[1738250831045,4.3018,3257.2,3256.6,3.2078]
[1738250831046,4.54334755,3257.2,3256.6,3.2078]
[1738250831239,0.9951,3257.8,3256.6,3.2078]
[1738250831240,3.2078,3258.1,3257.0,3.2078]
[1738250831440,845.683726,5542.7,3256.6,5.0]
[1738250831441,3.68244245,3258.8,3257.8,0.61393]
[1738250831644,0.2490374,3258.6,3257.8,1.60763]
[1738250831845,3.68244245,3258.8,3257.8,1.60763]
[1738250832143,0.24131714,3258.7,3257.8,1.60763]
[1738250832339,3.68244245,3258.3,3257.8,1.60763]
[1738250832533,3.68244245,3258.3,3257.8,0.9937]
[1738250832933,1.7125201,3257.9,3257.7,3.2078]
[1738250833140,3.68244245,3257.8,3257.2,3.2078]
[1738250833542,1.094,3257.7,3257.2,3.2078]
[1738250834045,6.89024245,3257.3,3256.4,3.2078]
[1738250834339,3.68244245,3256.7,3256.4,3.2078]
[1738250834738,3.68244245,3256.7,3256.6,0.61415]
[1738250835449,4.63104245,3257.2,3256.5,0.9748]
[1738250835748,4.63104245,3257.2,3256.8,3.8219]
[1738250835947,4.63104245,3257.2,3256.8,3.2078]
[1738250836245,3.2078,3256.9,3255.5,3.2078]
[1738250836435,3.68244245,3256.2,3255.5,3.2078]
[1738250836638,3.68244245,3256.2,3256.0,0.61426]
[1738250836841,3.68704255,3256.2,3255.6,1.014]
[1738250837238,3.68704255,3256.2,3256.1,0.61425]
[1738250837645,0.0046001,3256.2,3256.1,0.61425]
[1738250840254,0.61407,3257.1,3256.1,5.61425]
[1738250840452,8.94384245,3257.2,3256.4,3.2078]
[1738250840656,0.61409,3257.0,3256.7,0.61413]
[1738250840952,7.83884245,3257.2,3256.7,0.61413]
[1738250840953,9.18732464,3257.2,3256.7,0.61413]
[1738250841256,0.6141,3257.0,3256.7,0.61413]
[1738250841553,3.68244245,3257.2,3256.9,3.2078]
[1738250841855,0.61406,3257.1,3256.7,0.61412]
[1738250842039,3.68244245,3257.2,3256.7,0.61412]
[1738250842238,6.89024245,3257.2,3256.7,0.61412]
[1738250842453,0.61408,3257.1,3256.6,0.6187501]
[1738250842653,7.50429245,3257.2,3256.7,0.61413]
[1738250842951,6.89024245,3257.2,3256.7,0.61413]
[1738250843147,6.89024245,3257.2,3256.6,0.0046001]
[1738250843453,6.89024245,3257.2,3257.1,0.61406]
[1738250843649,6.89024245,3257.2,3257.0,0.61407]
[1738250843845,6.89024245,3257.2,3257.1,0.61406]
[1738250844940,3.68244245,3257.2,3257.1,0.61406]
[1738250845146,0.0046001,3257.3,3257.2,0.61404]
[1738250845349,0.0046001,3257.3,3257.2,3.82184]
[1738250847052,0.0046001,3257.3,3257.0,0.3015042]
[1738250847243,3.68244245,3257.2,3257.1,0.61404]
[1738250847443,3.68244245,3257.2,3256.6,0.0046001]
[1738250847958,3.68244245,3257.2,3256.8,3.2078]
[1738250848152,0.61408,3257.1,3256.8,3.8219]
[1738250848452,4.29649245,3257.2,3256.9,0.61408]
[1738250848657,3.68244245,3257.2,3257.0,0.61407]
[1738250848956,3.68244245,3257.2,3256.8,3.2078]
[1738250848957,4.29650245,3257.2,3256.8,3.2078]
[1738250849151,4.29650245,3257.2,3257.0,0.61406]
[1738250849346,3.68244245,3257.2,3257.1,0.61406]
[1738250849557,4.29648245,3257.2,3256.8,3.2078]
[1738250849758,4.29648245,3257.2,3257.0,0.61407]
[1738250849954,3.68244245,3257.2,3256.8,3.2078]
[1738250850258,3.68244245,3257.2,3256.6,0.0046001]
[1738250850259,6.89024245,3257.2,3256.6,0.0046001]
[1738250850557,6.89024245,3257.2,3257.1,0.61406]
[1738250851256,6.89024245,3257.2,3256.6,0.0046001]
[1738250851460,6.89024245,3257.2,3256.9,0.61409]
[1738250851757,6.89024245,3257.2,3257.0,0.61407]
[1738250852657,6.89024245,3257.2,3256.9,0.61409]
[1738250853060,6.89024245,3257.2,3256.6,0.0046001]
[1738250853256,0.61407,3257.1,3256.7,0.61414]
[1738250853458,0.61407,3257.1,3256.6,0.0046001]
[1738250853459,0.61409,3257.0,3256.6,0.6187401]
[1738250853760,1.0082,3256.9,3256.6,0.0046001]
[1738250853960,1.0082,3256.9,3256.8,0.61412]
[1738250854453,4.79044245,3257.2,3257.1,0.61406]
[1738250854757,5.29307055,3257.2,3257.0,0.61407]
[1738250854955,5.29307055,3257.2,3256.9,0.61409]
[1738250855156,3.18887055,3257.0,3256.9,0.6141]
[1738250858756,3.18887055,3257.0,3256.8,3.2078]
[1738250858757,3.18887055,3257.0,3256.0,3.2078]
[1738250858955,3.18887055,3256.2,3256.1,0.61425]
[1738250859155,3.18887055,3256.2,3255.7,0.9299]
[1738250859350,3.2078,3256.5,3255.7,1.54423]
[1738250859351,3.18887055,3255.8,3255.7,1.54423]
[1738250860356,3.18887055,3255.8,3255.6,3.2078]
[1738250860557,0.61441,3255.3,3255.2,3.2078]
[1738250860856,3.18887055,3255.3,3255.2,0.61442]
[1738250861358,3.18887055,3255.3,3254.7,4.74405]
[1738250861554,3.18887055,3255.3,3255.2,3.82222]
[1738250863158,0.0046073,3255.6,3255.5,0.61436]
[1738250864069,0.61439,3255.4,3255.3,0.6144]
[1738250864263,1.56767,3255.5,3255.3,0.61439]
[1738250864461,0.9533,3255.5,3255.2,3.2078]
[1738250864959,0.0046073,3255.6,3255.5,0.61436]
[1738250866157,3.18887055,3256.1,3256.0,0.61427]
[1738250868261,0.0046073,3256.4,3256.3,0.61421]
[1738250868462,0.0046073,3256.4,3256.3,3.82201]
[1738250868661,0.0046073,3256.4,3256.3,0.61421]
[1738250868964,0.0046073,3256.4,3256.3,3.82201]
[1738250869660,0.0046073,3256.4,3256.3,3.2078]
[1738250869867,0.0046073,3256.4,3255.7,3.2124073]
[1738250870067,0.61426,3256.1,3255.9,0.61428]
[1738250870267,1.01,3256.0,3255.7,0.0046073]
[1738250870465,0.61431,3255.8,3255.7,0.0046073]
[1738250871067,0.61431,3255.8,3255.7,0.00296968]
[1738250871269,0.61433,3255.7,3255.6,0.00274635]
[1738250871459,3.2078,3255.7,3255.6,0.00274635]
[1738250871663,3.82213,3255.7,3255.6,0.00274635]
[1738250872572,3.2078,3255.7,3254.8,3.2078]
[1738250872871,3.18887055,3254.9,3254.8,3.8223]
[1738250873061,3.18887055,3254.9,3254.8,3.2078]
[1738250873264,0.61451,3254.8,3254.4,0.61457]
[1738250873464,3.18887055,3254.5,3254.3,3.82238]
[1738250873664,3.18887055,3254.5,3253.7,0.9729]
[1738250873868,3.18887055,3253.8,3253.7,1.5876]
[1738250874073,3.18887055,3253.8,3253.6,3.2078]
[1738250874268,0.61484,3253.0,3252.6,3.82271]
[1738250874465,3.18887055,3252.7,3252.4,0.61495]
[1738250874679,3.18887055,3252.7,3252.4,0.61494]
[1738250874969,4.71224164,3252.8,3252.2,3.2078]
[1738250875671,4.71224164,3252.8,3252.7,0.61489]
[1738250875872,4.71224164,3252.8,3251.9,0.9729]
[1738250876074,3.69354164,3252.1,3251.6,3.2078]
[1738250876263,3.69354164,3252.1,3251.7,0.61508]
[1738250876463,3.69354164,3252.1,3251.6,3.2078]
[1738250876666,4.80754164,3252.1,3251.6,1.6329]
[1738250876974,3.2078,3251.8,3250.6,4.70393966]
[1738250877186,3.69354164,3251.3,3250.7,0.61527]
[1738250877474,3.69354164,3251.3,3251.0,0.61521]
[1738250877667,3.69354164,3251.3,3250.6,4.70393966]
[1738250877668,3.69354164,3251.3,3250.7,3.2078]
[1738250877873,55.2,3267.8,3250.6,4.70393966]
[1738250877874,0.0046073,3251.5,3251.4,0.61514]
[1738250878672,7.3e-06,3251.5,3251.4,5.61514]
[1738250879367,7.3e-06,3251.5,3251.4,0.61514]
[1738250880569,7.3e-06,3251.5,3251.4,5.61514]
[1738250880771,7.3e-06,3251.5,3251.4,0.61514]
[1738250881167,7.3e-06,3251.5,3251.1,4.2467073]
[1738250881371,7.3e-06,3251.5,3251.3,0.61515]
[1738250881664,7.3e-06,3251.5,3251.1,0.0046073]
[1738250881665,7.3e-06,3251.5,3251.2,0.61517]
[1738250881864,7.3e-06,3251.5,3251.1,0.0046073]
[1738250882077,7.3e-06,3251.5,3251.2,0.61517]
[1738250882375,7.3e-06,3251.5,3251.1,0.0046073]
[1738250882376,3.69354164,3251.3,3251.1,0.0046073]
[1738250882881,7.3e-06,3251.5,3251.1,3.2124073]
[1738250883179,7.3e-06,3251.5,3251.4,0.61514]
[1738250884274,7.3e-06,3251.5,3251.4,5.61514]
[1738250884675,1.9667,3253.8,3251.5,3.2078]
[1738250884676,3.69354164,3253.3,3251.5,3.2078]
[1738250884873,4.70114164,3253.8,3253.0,3.2078]
[1738250885083,4.70114164,3253.8,3253.7,0.6147]
[1738250885084,1.0076,3253.8,3253.7,0.6147]
[1738250885276,1.128,3254.2,3253.4,3.2078]
[1738250885481,3.69354164,3253.8,3253.0,3.2078]
[1738250885892,0.0046073,3253.7,3253.4,3.2078]
[1738250886196,0.0046073,3253.7,3253.6,0.61472]
[1738250888090,0.0046073,3253.7,3253.6,3.82252]
[1738250888792,7.3e-06,3253.7,3253.6,8.82252]
[1738250889183,7.3e-06,3253.7,3253.6,3.82252]
[1738250889385,7.3e-06,3253.7,3253.6,8.82252]
[1738250889985,7.3e-06,3253.7,3253.6,3.82252]
[1738250890985,7.3e-06,3253.7,3253.6,8.82252]
[1738250891397,7.3e-06,3253.7,3253.6,12.51606164]
[1738250891593,4.30795164,3255.3,3255.0,0.61444]
[1738250891789,3.69354164,3255.3,3255.0,0.61444]
[1738250892096,3.69354164,3255.3,3255.1,0.61442]
[1738250892300,3.69354164,3255.3,3255.2,0.61442]
[1738250893795,3.69354164,3255.3,3254.9,0.0046073]
[1738250893796,3.2078,3255.5,3254.9,0.0046073]
[1738250894004,3.2078,3255.5,3255.4,0.61438]
[1738250895302,3.2078,3255.5,3254.9,0.0046073]
[1738250895493,3.2078,3255.5,3255.4,0.61438]
[1738250896497,3.2078,3255.5,3254.9,0.0046073]
[1738250896690,3.2078,3255.5,3255.4,0.61438]
[1738250897293,0.0046073,3255.6,3255.5,0.61436]
[1738250900901,7.3e-06,3255.6,3255.5,0.61436]
[1738250901103,6.90134164,3256.8,3255.5,5.0]
[1738250901299,7.14235186,3256.8,3256.0,3.2078]
[1738250901500,0.61425,3256.1,3255.8,0.6143]
[1738250901900,3.2078,3256.0,3255.4,3.2078]
[1738250902104,3.2078,3256.0,3255.0,3.2078]
[1738250902401,3.8266973,3256.0,3255.6,0.61433]
[1738250902796,0.6143,3255.9,3255.6,0.61433]
[1738250903002,3.8266873,3256.0,3255.7,0.61432]
[1738250903301,3.8266873,3256.0,3255.0,3.2078]
[1738250903496,4.2310073,3256.0,3255.0,3.2078]
[1738250903704,4.2310073,3256.0,3255.8,0.6143]
[1738250904009,0.61429,3255.9,3255.6,0.61434]
[1738250904501,0.61431,3255.8,3255.5,0.61436]
[1738250904707,0.6143,3255.9,3255.1,0.61444]
[1738250904907,0.6143,3255.9,3255.5,0.61435]
[1738250905501,5.09076127,3256.0,3255.6,0.61434]
[1738250905702,5.09076127,3256.0,3254.9,1.5408073]
[1738250905703,3.45788127,3256.0,3255.9,0.61429]
[1738250906006,3.2124073,3256.0,3255.9,0.61429]
[1738250906308,0.0046073,3256.0,3255.9,0.61429]
[1738250908805,3.19007096,3256.7,3256.6,0.61416]
[1738250909511,3.2078,3256.9,3256.4,3.2078]
[1738250909699,3.19007096,3256.7,3256.0,3.2078]
[1738250910209,0.61417,3256.6,3256.4,0.61419]
[1738250910805,0.61417,3256.6,3256.5,0.61418]
[1738250911003,3.2124073,3256.9,3256.8,0.61412]
[1738250911307,0.0046073,3256.9,3256.8,0.61412]
[1738250914312,0.0046073,3256.9,3256.8,3.82192]
[1738250914713,0.0046073,3256.9,3256.8,0.61412]
[1738250917508,0.0046073,3256.9,3256.8,3.82192]
[1738250918114,0.01545,3257.5,3256.8,8.2078]
[1738250918317,0.01545,3257.5,3257.4,0.61401]
[1738250918818,7.36227096,3258.3,3258.2,0.61386]
[1738250919007,3.19007096,3258.3,3258.2,0.61386]
[1738250921114,0.0046073,3258.6,3258.5,0.6138]
[1738250923408,4.18217096,3259.9,3258.5,5.0]
[1738250923614,4.18217096,3259.9,3259.3,3.2078]
[1738250923821,4.79572096,3259.9,3259.4,0.61362]
[1738250924019,3.2078,3259.6,3258.9,3.2078]
[1738250924215,3.19007096,3259.5,3258.5,3.2078]
[1738250924419,3.2078,3259.2,3258.9,0.61372]
[1738250924619,0.00302383,3259.3,3259.0,0.6137]
[1738250924922,0.00302383,3259.3,3259.1,0.61368]
[1738250925317,0.00302383,3259.3,3258.5,3.2078]
[1738250925514,0.00302383,3259.3,3259.2,0.61367]
[1738250927223,3.19007096,3260.3,3260.2,0.61348]
[1738250927423,4.1969,3260.5,3259.1,3.19007096]
[1738250927424,3.2078,3260.5,3260.4,0.61345]
[1738250927625,3.2078,3260.5,3260.0,3.2078]
[1738250927923,3.2078,3260.5,3260.4,0.61345]
[1738250928424,3.2078,3260.5,3260.1,0.0046073]
[1738250928621,3.19007096,3260.3,3260.1,0.0046073]
[1738250928813,1.1,3260.2,3259.2,0.9772]
[1738250929021,6.39787096,3259.9,3259.6,0.61358]
[1738250929523,6.39787096,3259.9,3259.7,0.61358]
[1738250930423,6.39787096,3259.9,3259.5,0.0046073]
[1738250930424,6.39787096,3259.9,3259.8,0.61356]
[1738250930726,3.19007096,3259.9,3259.5,0.0046073]
[1738250931118,3.2078,3259.6,3259.5,0.0046073]
[1738250931417,3.2078,3259.6,3258.7,3.2078]
[1738250931727,0.9871,3259.8,3259.6,0.6136]
[1738250931728,4.17717096,3259.8,3259.6,0.6136]
[1738250931921,4.17717096,3259.8,3258.9,1.53433]
[1738250932218,3.2078,3259.6,3259.5,0.6136]
[1738250932425,3.2078,3259.6,3259.0,1.53428]
[1738250932426,3.2078,3259.6,3259.4,0.61363]
[1738250932619,3.2078,3259.6,3259.0,0.0046073]
[1738250932817,3.19007096,3259.4,3259.0,0.0046073]
[1738250933119,3.19007096,3259.4,3259.3,0.61365]
[1738250933422,0.61367,3259.3,3258.9,0.61373]
[1738250933621,3.19007096,3259.0,3258.9,0.61373]
[1738250933918,3.19007096,3259.0,3258.7,0.61375]
[1738250934113,6.39787096,3259.0,3258.2,1.53465]
[1738250934318,6.39787096,3259.0,3258.0,0.959]
[1738250934319,3.19007096,3258.6,3258.5,0.6138]
[1738250934626,3.19007096,3258.6,3258.3,0.6184373]
[1738250934918,3.19007096,3258.6,3258.4,0.61382]
[1738250935120,6.39787096,3258.6,3258.4,0.61382]
[1738250935323,6.39787096,3258.6,3258.3,0.0046073]
[1738250935626,6.39787096,3258.6,3258.3,0.6184473]
[1738250936317,6.39787096,3258.6,3258.3,0.0046073]
[1738250936920,1.57941,3258.5,3258.3,0.0046073]
[1738250937120,0.9656,3258.5,3258.3,0.0046073]
[1738250937624,0.9656,3258.5,3258.4,0.61382]
[1738250937813,0.9656,3258.5,3258.3,0.0046073]
[1738250938315,0.9656,3258.5,3258.3,0.6184373]
[1738250938518,0.61382,3258.4,3258.3,0.0046073]
[1738250938719,0.9656,3258.5,3258.3,0.0046073]
[1738250939125,0.9656,3258.5,3258.3,0.6184473]
[1738250939326,1.57942,3258.5,3258.3,0.0046073]
[1738250939622,1.57941,3258.5,3258.3,0.0046073]
[1738250939819,0.9656,3258.5,3258.3,0.0046073]
[1738250940423,1.21444482,3258.5,3258.3,0.0046073]
[1738250940820,0.9656,3258.5,3258.4,0.61382]
[1738250941024,2.0656,3258.5,3258.4,0.61382]
[1738250941226,6.39787096,3258.6,3258.5,0.6138]
[1738250941625,3.19007096,3258.6,3258.5,0.6138]
[1738250942417,3.80387096,3258.6,3258.3,0.0046073]
[1738250942617,3.80387096,3258.6,3257.4,1.53503]
[1738250942618,3.19007096,3258.6,3257.5,0.9894]
[1738250942822,3.19007096,3258.0,3257.9,0.61392]
[1738250944232,3.2124073,3258.3,3258.2,0.61386]
[1738250945133,0.0046073,3258.3,3258.2,0.61386]
[1738250947321,3.2078,3259.4,3258.2,5.0]
[1738250947527,3.2078,3259.4,3259.3,0.61365]